[Event "Titled Tuesday Blitz October 18 Late 2022"]
[White "O`Gorman, Tom"]
[Black "Yano, William Jorge Froes"]
[WhiteFideId "2508249"]
[BlackFideId "2112949"]
[WhiteElo "2271"]
[BlackElo "2122"]
[Result "0-1"]
[Round "07"]
[TimeControl "180+1"]
[Date "2022.10.19"]
[WhiteClock "0:00:11"]
[BlackClock "0:00:16"]

1. e4 {[%clk 0:03:00]}  e6 {[%clk 0:02:57]} 2. d4 {[%clk 0:03:00]}  d5 {[%clk 0:02:56]} 3. Nd2 {[%clk 0:03:00]}  h6 {[%clk 0:02:55]} 4. Ngf3 {[%clk 0:03:00]}  Nf6 {[%clk 0:02:55]} 5. e5 {[%clk 0:03:00]}  Nfd7 {[%clk 0:02:56]} 6. Bd3 {[%clk 0:03:00]}  c5 {[%clk 0:02:56]} 7. c3 {[%clk 0:03:00]}  Nc6 {[%clk 0:02:57]} 8. O-O {[%clk 0:03:00]}  g5 {[%clk 0:02:57]} 9. h3 {[%clk 0:02:53]}  h5 {[%clk 0:02:57]} 10. dxc5 {[%clk 0:02:52]}  g4 {[%clk 0:02:55]} 11. Nd4 {[%clk 0:02:42]}  Ndxe5 {[%clk 0:02:51]} 12. Bb5 {[%clk 0:02:39]}  Bxc5 {[%clk 0:02:37]} 13. N2b3 {[%clk 0:02:34]}  Bd6 {[%clk 0:02:37]} 14. f4 {[%clk 0:02:29]}  gxf3 {[%clk 0:02:29]} 15. Nxf3 {[%clk 0:02:27]}  Nxf3+ {[%clk 0:02:29]} 16. Qxf3 {[%clk 0:02:27]}  Qb6+ {[%clk 0:02:12]} 17. Nd4 {[%clk 0:02:24]}  f5 {[%clk 0:02:02]} 18. Be3 {[%clk 0:02:21]}  Qc7 {[%clk 0:01:47]} 19. Rae1 {[%clk 0:02:14]}  Bd7 {[%clk 0:01:45]} 20. Nxf5 {[%clk 0:02:10]}  Bh2+ {[%clk 0:01:37]} 21. Kh1 {[%clk 0:02:09]}  O-O-O {[%clk 0:01:35]} 22. Bxc6 {[%clk 0:02:04]}  Bxc6 {[%clk 0:01:25]} 23. Nd4 {[%clk 0:02:01]}  Rde8 {[%clk 0:01:00]} 24. Bf2 {[%clk 0:01:24]}  Be5 {[%clk 0:00:40]} 25. Rxe5 {[%clk 0:01:08]}  Qxe5 {[%clk 0:00:36]} 26. Bg3 {[%clk 0:01:07]}  Qg7 {[%clk 0:00:22]} 27. Re1 {[%clk 0:00:59]}  Rhf8 {[%clk 0:00:20]} 28. Qe3 {[%clk 0:00:53]}  Rg8 {[%clk 0:00:19]} 29. Ne2 {[%clk 0:00:48]}  e5 {[%clk 0:00:18]} 30. Qf2 {[%clk 0:00:44]}  h4 {[%clk 0:00:18]} 31. Bxh4 {[%clk 0:00:42]}  d4 {[%clk 0:00:19]} 32. Bg3 {[%clk 0:00:42]}  Ref8 {[%clk 0:00:18]} 33. Qg1 {[%clk 0:00:34]}  Qh8 {[%clk 0:00:18]} 34. Qh2 {[%clk 0:00:31]}  Rf5 {[%clk 0:00:18]} 35. cxd4 {[%clk 0:00:29]}  exd4 {[%clk 0:00:17]} 36. Nf4 {[%clk 0:00:23]}  Rxf4 {[%clk 0:00:16]} 37. Bxf4 {[%clk 0:00:22]}  Rxg2 {[%clk 0:00:16]} 38. h4 {[%clk 0:00:10]}  Rxh2+ {[%clk 0:00:16]} 39. Kxh2 {[%clk 0:00:11]}  Qxh4+ {[%clk 0:00:16]} 0-1


[Site "https://www.chess.com"]

[Event "Titled Tuesday Blitz October 18 Late 2022"]
[White "Ozdemir, Serhan Berat"]
[Black "Erdogdu, Mert"]
[WhiteFideId "6374611"]
[BlackFideId "6301495"]
[WhiteElo "2016"]
[BlackElo "2413"]
[Result "0-1"]
[Round "07"]
[TimeControl "180+1"]
[Date "2022.10.18"]
[WhiteClock "0:00:02"]
[BlackClock "0:00:39"]

1. e4 {[%clk 0:03:00]}  c5 {[%clk 0:02:59]} 2. Nf3 {[%clk 0:03:01]}  d6 {[%clk 0:02:59]} 3. d4 {[%clk 0:03:01]}  cxd4 {[%clk 0:03:00]} 4. Nxd4 {[%clk 0:03:01]}  Nf6 {[%clk 0:03:01]} 5. Nc3 {[%clk 0:03:02]}  a6 {[%clk 0:03:01]} 6. Bg5 {[%clk 0:02:55]}  e6 {[%clk 0:02:58]} 7. f4 {[%clk 0:02:55]}  Qb6 {[%clk 0:02:58]} 8. Qd2 {[%clk 0:02:52]}  Nc6 {[%clk 0:02:58]} 9. Nb3 {[%clk 0:02:28]}  Ng4 {[%clk 0:02:57]} 10. h3 {[%clk 0:01:55]}  Qe3+ {[%clk 0:02:51]} 11. Qxe3 {[%clk 0:01:51]}  Nxe3 {[%clk 0:02:52]} 12. Kd2 {[%clk 0:01:30]}  Nxf1+ {[%clk 0:02:33]} 13. Rhxf1 {[%clk 0:01:30]}  h6 {[%clk 0:02:33]} 14. Bh4 {[%clk 0:01:28]}  g5 {[%clk 0:02:33]} 15. fxg5 {[%clk 0:01:21]}  Be7 {[%clk 0:02:33]} 16. Bg3 {[%clk 0:01:14]}  hxg5 {[%clk 0:02:32]} 17. a4 {[%clk 0:01:09]}  Bd7 {[%clk 0:02:25]} 18. Kc1 {[%clk 0:01:04]}  Rc8 {[%clk 0:02:18]} 19. a5 {[%clk 0:01:02]}  Ne5 {[%clk 0:02:17]} 20. Nd2 {[%clk 0:00:44]}  g4 {[%clk 0:01:52]} 21. Bxe5 {[%clk 0:00:33]}  dxe5 {[%clk 0:01:51]} 22. hxg4 {[%clk 0:00:33]}  Rg8 {[%clk 0:01:47]} 23. Rh1 {[%clk 0:00:26]}  Bf6 {[%clk 0:01:31]} 24. Ra3 {[%clk 0:00:17]}  Ke7 {[%clk 0:01:25]} 25. Rb3 {[%clk 0:00:13]}  Bc6 {[%clk 0:01:25]} 26. Rh7 {[%clk 0:00:08]}  Rxg4 {[%clk 0:01:16]} 27. Rh2 {[%clk 0:00:06]}  Bg5 {[%clk 0:01:12]} 28. Nd1 {[%clk 0:00:03]}  Bxe4 {[%clk 0:01:06]} 29. Ne3 {[%clk 0:00:01]}  Bxe3 {[%clk 0:01:03]} 30. Rxe3 {[%clk 0:00:02]}  Rxc2+ {[%clk 0:01:02]} 31. Kd1 {[%clk 0:00:02]}  Bg6 {[%clk 0:01:01]} 32. Rb3 {[%clk 0:00:02]}  Rc7 {[%clk 0:00:59]} 33. Ke2 {[%clk 0:00:01]}  Ra4 {[%clk 0:00:58]} 34. Nf3 {[%clk 0:00:01]}  Rxa5 {[%clk 0:00:57]} 35. Nh4 {[%clk 0:00:01]}  Be4 {[%clk 0:00:56]} 36. Ke3 {[%clk 0:00:01]}  Bc6 {[%clk 0:00:55]} 37. g4 {[%clk 0:00:01]}  Rd7 {[%clk 0:00:52]} 38. g5 {[%clk 0:00:02]}  Ra4 {[%clk 0:00:46]} 39. g6 {[%clk 0:00:02]}  f5 {[%clk 0:00:41]} 40. g7 {[%clk 0:00:01]}  Kf7 {[%clk 0:00:41]} 41. Rg2 {[%clk 0:00:01]}  Kg8 {[%clk 0:00:40]} 42. Ng6 {[%clk 0:00:02]}  Bxg2 {[%clk 0:00:39]} 0-1


[Site "https://www.chess.com"]

[Event "Titled Tuesday Blitz October 18 Late 2022"]
[White "Ozen, Batuhan"]
[Black "Ibadov, Dashgyn"]
[WhiteFideId "6345123"]
[BlackFideId "24107514"]
[WhiteElo "2413"]
[BlackElo "2208"]
[Result "0-1"]
[Round "07"]
[TimeControl "180+1"]
[Date "2022.10.19"]
[WhiteClock "0:00:15"]
[BlackClock "0:00:03"]

1. d4 {[%clk 0:03:00]}  Nf6 {[%clk 0:02:58]} 2. Nc3 {[%clk 0:02:59]}  e6 {[%clk 0:02:56]} 3. Bg5 {[%clk 0:02:55]}  d5 {[%clk 0:02:55]} 4. f3 {[%clk 0:02:51]}  Be7 {[%clk 0:02:53]} 5. e4 {[%clk 0:02:49]}  h6 {[%clk 0:02:34]} 6. Bh4 {[%clk 0:02:41]}  O-O {[%clk 0:02:22]} 7. Qd2 {[%clk 0:02:25]}  dxe4 {[%clk 0:01:54]} 8. O-O-O {[%clk 0:01:52]}  exf3 {[%clk 0:01:43]} 9. Nxf3 {[%clk 0:01:52]}  b6 {[%clk 0:01:41]} 10. Bc4 {[%clk 0:01:37]}  Bb7 {[%clk 0:01:40]} 11. Rhe1 {[%clk 0:01:35]}  c6 {[%clk 0:01:03]} 12. Kb1 {[%clk 0:01:24]}  Nd5 {[%clk 0:01:00]} 13. Bxe7 {[%clk 0:01:18]}  Qxe7 {[%clk 0:01:01]} 14. Ne4 {[%clk 0:01:18]}  Nd7 {[%clk 0:00:57]} 15. g4 {[%clk 0:01:13]}  c5 {[%clk 0:00:44]} 16. g5 {[%clk 0:01:12]}  h5 {[%clk 0:00:37]} 17. g6 {[%clk 0:01:09]}  fxg6 {[%clk 0:00:35]} 18. Neg5 {[%clk 0:01:01]}  Rf6 {[%clk 0:00:26]} 19. Ne5 {[%clk 0:00:56]}  Nxe5 {[%clk 0:00:23]} 20. Rxe5 {[%clk 0:00:57]}  Raf8 {[%clk 0:00:15]} 21. dxc5 {[%clk 0:00:56]}  Qxc5 {[%clk 0:00:13]} 22. Bxd5 {[%clk 0:00:46]}  Bxd5 {[%clk 0:00:11]} 23. Nxe6 {[%clk 0:00:45]}  Rxe6 {[%clk 0:00:11]} 24. Rxd5 {[%clk 0:00:44]}  Qc6 {[%clk 0:00:11]} 25. Rd7 {[%clk 0:00:38]}  Kh7 {[%clk 0:00:08]} 26. Qd4 {[%clk 0:00:38]}  Ref6 {[%clk 0:00:09]} 27. c3 {[%clk 0:00:35]}  R8f7 {[%clk 0:00:09]} 28. Rd8 {[%clk 0:00:34]}  Rf1 {[%clk 0:00:08]} 29. a3 {[%clk 0:00:33]}  Rxd1+ {[%clk 0:00:08]} 30. Qxd1 {[%clk 0:00:33]}  Qe4+ {[%clk 0:00:08]} 31. Ka2 {[%clk 0:00:33]}  Qe6+ {[%clk 0:00:07]} 32. Kb1 {[%clk 0:00:32]}  Rf2 {[%clk 0:00:07]} 33. Rd2 {[%clk 0:00:29]}  Qf5+ {[%clk 0:00:06]} 34. Ka2 {[%clk 0:00:28]}  Qf7+ {[%clk 0:00:06]} 35. Ka1 {[%clk 0:00:27]}  Rf1 {[%clk 0:00:06]} 36. Qxf1 {[%clk 0:00:20]}  Qxf1+ {[%clk 0:00:05]} 37. Ka2 {[%clk 0:00:20]}  Qf4 {[%clk 0:00:06]} 38. Rc2 {[%clk 0:00:20]}  g5 {[%clk 0:00:06]} 39. b4 {[%clk 0:00:20]}  g4 {[%clk 0:00:06]} 40. c4 {[%clk 0:00:20]}  h4 {[%clk 0:00:07]} 41. c5 {[%clk 0:00:20]}  bxc5 {[%clk 0:00:07]} 42. bxc5 {[%clk 0:00:21]}  g3 {[%clk 0:00:07]} 43. hxg3 {[%clk 0:00:21]}  hxg3 {[%clk 0:00:07]} 44. c6 {[%clk 0:00:22]}  Qc7 {[%clk 0:00:05]} 45. Kb3 {[%clk 0:00:21]}  Kg6 {[%clk 0:00:05]} 46. Kb4 {[%clk 0:00:21]}  Kg5 {[%clk 0:00:06]} 47. Kc5 {[%clk 0:00:21]}  Kg4 {[%clk 0:00:06]} 48. Rd2 {[%clk 0:00:22]}  Kh3 {[%clk 0:00:06]} 49. Rd7 {[%clk 0:00:21]}  Qe5+ {[%clk 0:00:07]} 50. Kb4 {[%clk 0:00:20]}  g2 {[%clk 0:00:07]} 51. c7 {[%clk 0:00:20]}  g1=Q {[%clk 0:00:06]} 52. c8=Q {[%clk 0:00:19]}  Qb6+ {[%clk 0:00:06]} 53. Kc4 {[%clk 0:00:18]}  Qee6+ {[%clk 0:00:04]} 54. Kd3 {[%clk 0:00:15]}  Qee3+ {[%clk 0:00:03]} 55. Kc2 {[%clk 0:00:15]}  Qbb3# {[%clk 0:00:03]} 0-1


[Site "https://www.chess.com"]

[Event "Titled Tuesday Blitz October 18 Late 2022"]
[White "Pap, Gyula"]
[Black "Naroditsky, Daniel"]
[WhiteFideId "725323"]
[BlackFideId "2026961"]
[WhiteElo "2519"]
[BlackElo "2628"]
[Result "0-1"]
[Round "07"]
[TimeControl "180+1"]
[Date "2022.10.18"]
[WhiteClock "0:00:01"]
[BlackClock "0:00:03"]

1. g3 {[%clk 0:03:00]}  e5 {[%clk 0:02:59]} 2. c4 {[%clk 0:03:00]}  c6 {[%clk 0:03:00]} 3. d4 {[%clk 0:02:59]}  exd4 {[%clk 0:02:55]} 4. Qxd4 {[%clk 0:02:59]}  d5 {[%clk 0:02:54]} 5. Bg2 {[%clk 0:02:58]}  Nf6 {[%clk 0:02:54]} 6. cxd5 {[%clk 0:02:58]}  cxd5 {[%clk 0:02:54]} 7. Nf3 {[%clk 0:02:58]}  Nc6 {[%clk 0:02:53]} 8. Qd3 {[%clk 0:02:58]}  h6 {[%clk 0:02:52]} 9. O-O {[%clk 0:02:57]}  Be6 {[%clk 0:02:45]} 10. Nc3 {[%clk 0:02:41]}  Bc5 {[%clk 0:02:43]} 11. Na4 {[%clk 0:02:38]}  Bd6 {[%clk 0:02:42]} 12. Be3 {[%clk 0:02:35]}  Qa5 {[%clk 0:02:33]} 13. Nc3 {[%clk 0:02:29]}  O-O {[%clk 0:02:33]} 14. Qb5 {[%clk 0:02:25]}  Qc7 {[%clk 0:02:33]} 15. Rac1 {[%clk 0:02:22]}  a6 {[%clk 0:02:32]} 16. Qb6 {[%clk 0:02:19]}  Qe7 {[%clk 0:02:26]} 17. Nd4 {[%clk 0:02:15]}  Ne5 {[%clk 0:02:19]} 18. Bf4 {[%clk 0:02:08]}  Rfc8 {[%clk 0:01:36]} 19. Bxe5 {[%clk 0:01:46]}  Bxe5 {[%clk 0:01:36]} 20. Rfd1 {[%clk 0:01:42]}  Rc4 {[%clk 0:01:19]} 21. a3 {[%clk 0:01:11]}  Rac8 {[%clk 0:01:10]} 22. e3 {[%clk 0:01:07]}  h5 {[%clk 0:00:57]} 23. Nce2 {[%clk 0:01:04]}  Bxd4 {[%clk 0:00:49]} 24. exd4 {[%clk 0:01:02]}  Bg4 {[%clk 0:00:50]} 25. Nc3 {[%clk 0:00:44]}  Bxd1 {[%clk 0:00:48]} 26. Rxd1 {[%clk 0:00:45]}  Qd7 {[%clk 0:00:36]} 27. h3 {[%clk 0:00:43]}  Re8 {[%clk 0:00:30]} 28. Qb3 {[%clk 0:00:41]}  b5 {[%clk 0:00:29]} 29. Qc2 {[%clk 0:00:32]}  Ne4 {[%clk 0:00:28]} 30. Qd3 {[%clk 0:00:24]}  Qf5 {[%clk 0:00:21]} 31. Rf1 {[%clk 0:00:19]}  g6 {[%clk 0:00:22]} 32. Ne2 {[%clk 0:00:17]}  Nd6 {[%clk 0:00:21]} 33. Qd1 {[%clk 0:00:17]}  Qc2 {[%clk 0:00:18]} 34. Nf4 {[%clk 0:00:16]}  Qxd1 {[%clk 0:00:14]} 35. Rxd1 {[%clk 0:00:17]}  Nf5 {[%clk 0:00:10]} 36. Nxd5 {[%clk 0:00:15]}  Kg7 {[%clk 0:00:08]} 37. Nb4 {[%clk 0:00:14]}  Rxd4 {[%clk 0:00:05]} 38. Rxd4 {[%clk 0:00:13]}  Nxd4 {[%clk 0:00:06]} 39. Nxa6 {[%clk 0:00:14]}  Re1+ {[%clk 0:00:07]} 40. Bf1 {[%clk 0:00:13]}  Rb1 {[%clk 0:00:05]} 41. b4 {[%clk 0:00:10]}  Rb3 {[%clk 0:00:03]} 42. Nc7 {[%clk 0:00:09]}  Rxa3 {[%clk 0:00:03]} 43. Nxb5 {[%clk 0:00:07]}  Nxb5 {[%clk 0:00:04]} 44. Bxb5 {[%clk 0:00:08]}  Rb3 {[%clk 0:00:05]} 45. h4 {[%clk 0:00:08]}  Rxb4 {[%clk 0:00:06]} 46. Be2 {[%clk 0:00:08]}  f5 {[%clk 0:00:06]} 47. Kg2 {[%clk 0:00:08]}  Kf6 {[%clk 0:00:06]} 48. Bd3 {[%clk 0:00:08]}  Ke5 {[%clk 0:00:06]} 49. Be2 {[%clk 0:00:08]}  Rb2 {[%clk 0:00:06]} 50. Kf3 {[%clk 0:00:08]}  Kd4 {[%clk 0:00:05]} 51. Ba6 {[%clk 0:00:07]}  Kc3 {[%clk 0:00:04]} 52. Ke3 {[%clk 0:00:07]}  Rb4 {[%clk 0:00:03]} 53. Bf1 {[%clk 0:00:06]}  Re4+ {[%clk 0:00:03]} 54. Kf3 {[%clk 0:00:06]}  Kd2 {[%clk 0:00:04]} 55. Bb5 {[%clk 0:00:05]}  Re6 {[%clk 0:00:03]} 56. Bc4 {[%clk 0:00:05]}  Rd6 {[%clk 0:00:02]} 57. Bf7 {[%clk 0:00:04]}  Rf6 {[%clk 0:00:02]} 58. Be8 {[%clk 0:00:04]}  Ke1 {[%clk 0:00:03]} 59. Bb5 {[%clk 0:00:05]}  Rd6 {[%clk 0:00:03]} 60. Ke3 {[%clk 0:00:03]}  Rb6 {[%clk 0:00:02]} 61. Bc4 {[%clk 0:00:02]}  Rc6 {[%clk 0:00:02]} 62. Bd3 {[%clk 0:00:02]}  Rc3 {[%clk 0:00:02]} 63. f4 {[%clk 0:00:02]}  Ra3 {[%clk 0:00:02]} 64. Kd4 {[%clk 0:00:01]}  Kf2 {[%clk 0:00:03]} 65. Bxf5 {[%clk 0:00:01]}  gxf5 {[%clk 0:00:03]} 0-1


[Site "https://www.chess.com"]

[Event "Titled Tuesday Blitz October 18 Late 2022"]
[White "Petrovic, Aleksa"]
[Black "Kovacevic, Radmila"]
[WhiteFideId "967629"]
[BlackFideId "933171"]
[WhiteElo "2242"]
[BlackElo "2208"]
[Result "0-1"]
[Round "07"]
[TimeControl "180+1"]
[Date "2022.10.19"]
[WhiteClock "0:02:10"]
[BlackClock "0:02:45"]

1. e4 {[%clk 0:03:00]}  e5 {[%clk 0:02:57]} 2. Nf3 {[%clk 0:03:00]}  d5 {[%clk 0:02:56]} 3. exd5 {[%clk 0:03:00]}  e4 {[%clk 0:02:57]} 4. Qe2 {[%clk 0:03:00]}  Nf6 {[%clk 0:02:57]} 5. Nc3 {[%clk 0:02:59]}  Be7 {[%clk 0:02:57]} 6. Nxe4 {[%clk 0:02:59]}  O-O {[%clk 0:02:57]} 7. d3 {[%clk 0:02:52]}  Nxd5 {[%clk 0:02:57]} 8. Qd1 {[%clk 0:02:48]}  f5 {[%clk 0:02:56]} 9. Nc3 {[%clk 0:02:47]}  Bb4 {[%clk 0:02:56]} 10. Bd2 {[%clk 0:02:46]}  Re8+ {[%clk 0:02:56]} 11. Be2 {[%clk 0:02:46]}  Bxc3 {[%clk 0:02:53]} 12. bxc3 {[%clk 0:02:43]}  Qe7 {[%clk 0:02:52]} 13. c4 {[%clk 0:02:32]}  Nf6 {[%clk 0:02:48]} 14. Bc3 {[%clk 0:02:25]}  Nc6 {[%clk 0:02:48]} 15. Qd2 {[%clk 0:02:23]}  Bd7 {[%clk 0:02:46]} 16. Qc1 {[%clk 0:02:10]}  Qxe2# {[%clk 0:02:45]} 0-1


[Site "https://www.chess.com"]

[Event "Titled Tuesday Blitz October 18 Late 2022"]
[White "Roque Sola, Gisela"]
[Black "Manukian, Artak"]
[WhiteFideId "5120241"]
[BlackFideId "13301373"]
[WhiteElo "1961"]
[BlackElo "2474"]
[Result "0-1"]
[Round "07"]
[TimeControl "180+1"]
[Date "2022.10.19"]
[WhiteClock "0:00:08"]
[BlackClock "0:00:25"]

1. e4 {[%clk 0:03:00]}  c6 {[%clk 0:02:58]} 2. d4 {[%clk 0:02:59]}  d5 {[%clk 0:02:59]} 3. e5 {[%clk 0:03:00]}  Bf5 {[%clk 0:02:58]} 4. c4 {[%clk 0:03:00]}  e6 {[%clk 0:02:58]} 5. Nc3 {[%clk 0:02:58]}  Nd7 {[%clk 0:02:57]} 6. h4 {[%clk 0:02:53]}  h5 {[%clk 0:02:53]} 7. cxd5 {[%clk 0:02:51]}  cxd5 {[%clk 0:02:52]} 8. Be2 {[%clk 0:02:50]}  Ne7 {[%clk 0:02:50]} 9. Bxh5 {[%clk 0:02:44]}  Nc6 {[%clk 0:02:47]} 10. Be2 {[%clk 0:02:39]}  Rxh4 {[%clk 0:02:44]} 11. Rxh4 {[%clk 0:02:35]}  Qxh4 {[%clk 0:02:45]} 12. Be3 {[%clk 0:02:28]}  O-O-O {[%clk 0:02:33]} 13. Rc1 {[%clk 0:02:22]}  Kb8 {[%clk 0:02:32]} 14. a3 {[%clk 0:02:20]}  Ndxe5 {[%clk 0:02:18]} 15. dxe5 {[%clk 0:02:14]}  d4 {[%clk 0:02:18]} 16. Qa4 {[%clk 0:01:55]}  Qh1 {[%clk 0:01:58]} 17. Kf1 {[%clk 0:01:51]}  dxe3 {[%clk 0:01:53]} 18. fxe3 {[%clk 0:01:48]}  Bc5 {[%clk 0:01:48]} 19. Qf4 {[%clk 0:01:29]}  Qh6 {[%clk 0:01:25]} 20. Qxh6 {[%clk 0:01:21]}  gxh6 {[%clk 0:01:26]} 21. Nd1 {[%clk 0:01:20]}  Bb6 {[%clk 0:01:21]} 22. Nf3 {[%clk 0:01:18]}  Rd5 {[%clk 0:01:14]} 23. Bc4 {[%clk 0:01:14]}  Bd3+ {[%clk 0:01:09]} 24. Bxd3 {[%clk 0:01:12]}  Rxd3 {[%clk 0:01:09]} 25. Ke2 {[%clk 0:00:57]}  Rb3 {[%clk 0:01:09]} 26. Rc3 {[%clk 0:00:54]}  Rxc3 {[%clk 0:01:05]} 27. Nxc3 {[%clk 0:00:55]}  Bc7 {[%clk 0:01:05]} 28. Ne4 {[%clk 0:00:26]}  Nxe5 {[%clk 0:01:00]} 29. Nf6 {[%clk 0:00:21]}  Nxf3 {[%clk 0:00:55]} 30. gxf3 {[%clk 0:00:17]}  b5 {[%clk 0:00:49]} 31. f4 {[%clk 0:00:17]}  Kb7 {[%clk 0:00:43]} 32. Kf3 {[%clk 0:00:18]}  Kc6 {[%clk 0:00:36]} 33. Ne4 {[%clk 0:00:14]}  a5 {[%clk 0:00:33]} 34. b3 {[%clk 0:00:14]}  f5 {[%clk 0:00:28]} 35. Nd2 {[%clk 0:00:09]}  Bd6 {[%clk 0:00:27]} 36. a4 {[%clk 0:00:08]}  Bb4 {[%clk 0:00:25]} 37. e4 {[%clk 0:00:08]}  Bxd2 {[%clk 0:00:25]} 0-1


[Site "https://www.chess.com"]

[Event "Titled Tuesday Blitz October 18 Late 2022"]
[White "Rose, Felix"]
[Black "Banzea, Alexandru-Bogdan"]
[WhiteFideId "5105722"]
[BlackFideId "1232622"]
[WhiteElo "2039"]
[BlackElo "2294"]
[Result "1-0"]
[Round "07"]
[TimeControl "180+1"]
[Date "2022.10.19"]
[WhiteClock "0:00:23"]
[BlackClock "0:00:01"]

1. e4 {[%clk 0:03:00]}  c5 {[%clk 0:02:58]} 2. Nf3 {[%clk 0:03:00]}  a6 {[%clk 0:02:59]} 3. Nc3 {[%clk 0:02:58]}  e6 {[%clk 0:02:57]} 4. d4 {[%clk 0:02:59]}  cxd4 {[%clk 0:02:50]} 5. Nxd4 {[%clk 0:03:00]}  b5 {[%clk 0:02:38]} 6. Bd3 {[%clk 0:02:59]}  Bb7 {[%clk 0:02:38]} 7. O-O {[%clk 0:02:59]}  Nc6 {[%clk 0:02:10]} 8. Nxc6 {[%clk 0:02:59]}  Bxc6 {[%clk 0:02:11]} 9. Qf3 {[%clk 0:02:42]}  Bd6 {[%clk 0:02:07]} 10. Bf4 {[%clk 0:02:39]}  Bxf4 {[%clk 0:01:57]} 11. Qxf4 {[%clk 0:02:39]}  Ne7 {[%clk 0:01:46]} 12. Rad1 {[%clk 0:02:26]}  Ng6 {[%clk 0:01:45]} 13. Qd6 {[%clk 0:02:26]}  Qb8 {[%clk 0:01:37]} 14. Qxb8+ {[%clk 0:02:19]}  Rxb8 {[%clk 0:01:38]} 15. a3 {[%clk 0:02:19]}  Ke7 {[%clk 0:01:27]} 16. f4 {[%clk 0:02:18]}  Rhc8 {[%clk 0:01:26]} 17. e5 {[%clk 0:02:14]}  f5 {[%clk 0:01:24]} 18. exf6+ {[%clk 0:02:07]}  gxf6 {[%clk 0:01:25]} 19. f5 {[%clk 0:01:56]}  Nh4 {[%clk 0:01:24]} 20. fxe6 {[%clk 0:01:46]}  dxe6 {[%clk 0:01:02]} 21. Rf2 {[%clk 0:01:30]}  f5 {[%clk 0:00:51]} 22. Re1 {[%clk 0:01:24]}  Rg8 {[%clk 0:00:50]} 23. Ree2 {[%clk 0:01:00]}  Nf3+ {[%clk 0:00:36]} 24. Kh1 {[%clk 0:00:52]}  Nd4 {[%clk 0:00:36]} 25. Rd2 {[%clk 0:00:41]}  h5 {[%clk 0:00:24]} 26. Ne2 {[%clk 0:00:41]}  Nxe2 {[%clk 0:00:20]} 27. Rdxe2 {[%clk 0:00:36]}  Kf6 {[%clk 0:00:11]} 28. Kg1 {[%clk 0:00:31]}  h4 {[%clk 0:00:11]} 29. Rf4 {[%clk 0:00:30]}  h3 {[%clk 0:00:08]} 30. g3 {[%clk 0:00:29]}  Rg4 {[%clk 0:00:08]} 31. Rxg4 {[%clk 0:00:26]}  fxg4 {[%clk 0:00:09]} 32. Rf2+ {[%clk 0:00:27]}  Kg5 {[%clk 0:00:04]} 33. Be2 {[%clk 0:00:24]}  e5 {[%clk 0:00:03]} 34. Rf7 {[%clk 0:00:24]}  Rd8 {[%clk 0:00:02]} 35. Rg7+ {[%clk 0:00:23]}  Kf6 {[%clk 0:00:03]} 36. Rxg4 {[%clk 0:00:23]}  Rd2 {[%clk 0:00:03]} 37. Kf2 {[%clk 0:00:22]}  Rxc2 {[%clk 0:00:02]} 38. Rh4 {[%clk 0:00:23]}  Rxb2 {[%clk 0:00:02]} 39. Rh6+ {[%clk 0:00:22]}  Kf5 {[%clk 0:00:01]} 40. Rxc6 {[%clk 0:00:23]} 1-0


[Site "https://www.chess.com"]

[Event "Titled Tuesday Blitz October 18 Late 2022"]
[White "Rosen, Eric"]
[Black "Guzman Moneo, Alberto"]
[WhiteFideId "2032562"]
[BlackFideId "2209616"]
[WhiteElo "2362"]
[BlackElo "2157"]
[Result "1-0"]
[Round "07"]
[TimeControl "180+1"]
[Date "2022.10.19"]
[WhiteClock "0:00:09"]
[BlackClock "0:00:08"]

1. d4 {[%clk 0:03:00]}  Nf6 {[%clk 0:02:59]} 2. Bf4 {[%clk 0:02:59]}  c5 {[%clk 0:02:59]} 3. e3 {[%clk 0:02:59]}  Qb6 {[%clk 0:02:59]} 4. Na3 {[%clk 0:02:59]}  d6 {[%clk 0:02:59]} 5. Nc4 {[%clk 0:02:59]}  Qc7 {[%clk 0:02:59]} 6. Nf3 {[%clk 0:02:58]}  g6 {[%clk 0:02:55]} 7. e4 {[%clk 0:02:58]}  Nxe4 {[%clk 0:02:47]} 8. Qe2 {[%clk 0:02:58]}  f5 {[%clk 0:02:47]} 9. g4 {[%clk 0:02:58]}  cxd4 {[%clk 0:02:37]} 10. gxf5 {[%clk 0:02:53]}  gxf5 {[%clk 0:02:34]} 11. Nxd4 {[%clk 0:02:52]}  e5 {[%clk 0:02:22]} 12. f3 {[%clk 0:02:22]}  exf4 {[%clk 0:01:54]} 13. fxe4 {[%clk 0:02:22]}  fxe4 {[%clk 0:01:32]} 14. Qxe4+ {[%clk 0:02:05]}  Qe7 {[%clk 0:01:24]} 15. Nxd6+ {[%clk 0:01:53]}  Kd7 {[%clk 0:01:15]} 16. O-O-O {[%clk 0:01:12]}  Qxe4 {[%clk 0:01:08]} 17. Nxe4 {[%clk 0:01:13]}  Kc7 {[%clk 0:01:01]} 18. Nb5+ {[%clk 0:01:03]}  Kb6 {[%clk 0:01:01]} 19. Nec3 {[%clk 0:00:49]}  Be6 {[%clk 0:00:39]} 20. Bg2 {[%clk 0:00:49]}  Nc6 {[%clk 0:00:39]} 21. Rhe1 {[%clk 0:00:47]}  Bc4 {[%clk 0:00:36]} 22. a4 {[%clk 0:00:27]}  a6 {[%clk 0:00:31]} 23. Nd4 {[%clk 0:00:23]}  Bc5 {[%clk 0:00:27]} 24. Nxc6 {[%clk 0:00:12]}  bxc6 {[%clk 0:00:28]} 25. b3 {[%clk 0:00:13]}  Bf7 {[%clk 0:00:21]} 26. Ne4 {[%clk 0:00:10]}  Be3+ {[%clk 0:00:21]} 27. Kb2 {[%clk 0:00:09]}  Rhd8 {[%clk 0:00:18]} 28. Bf3 {[%clk 0:00:10]}  Bg6 {[%clk 0:00:17]} 29. c4 {[%clk 0:00:06]}  Rd4 {[%clk 0:00:14]} 30. Nc3 {[%clk 0:00:05]}  Rad8 {[%clk 0:00:13]} 31. a5+ {[%clk 0:00:05]}  Kc7 {[%clk 0:00:11]} 32. Rxd4 {[%clk 0:00:05]}  Rxd4 {[%clk 0:00:10]} 33. Nb1 {[%clk 0:00:02]}  Rd2+ {[%clk 0:00:10]} 34. Nxd2 {[%clk 0:00:02]}  Bxd2 {[%clk 0:00:11]} 35. Re7+ {[%clk 0:00:03]}  Kd6 {[%clk 0:00:11]} 36. Ra7 {[%clk 0:00:02]}  Kc5 {[%clk 0:00:07]} 37. Rxa6 {[%clk 0:00:03]}  Kd4 {[%clk 0:00:08]} 38. Rxc6 {[%clk 0:00:03]}  Ke3 {[%clk 0:00:08]} 39. Bd5 {[%clk 0:00:03]}  f3 {[%clk 0:00:08]} 40. Bxf3 {[%clk 0:00:03]}  Kxf3 {[%clk 0:00:08]} 41. a6 {[%clk 0:00:03]}  Be4 {[%clk 0:00:07]} 42. Rf6+ {[%clk 0:00:03]}  Kg4 {[%clk 0:00:07]} 43. a7 {[%clk 0:00:03]}  Bg5 {[%clk 0:00:06]} 44. Re6 {[%clk 0:00:03]}  Bf3 {[%clk 0:00:05]} 45. b4 {[%clk 0:00:03]}  Kf5 {[%clk 0:00:03]} 46. Re8 {[%clk 0:00:03]}  Bf6+ {[%clk 0:00:03]} 47. Kb3 {[%clk 0:00:04]}  h5 {[%clk 0:00:02]} 48. a8=Q {[%clk 0:00:04]}  Bxa8 {[%clk 0:00:01]} 49. Rxa8 {[%clk 0:00:05]}  h4 {[%clk 0:00:01]} 50. Ra5+ {[%clk 0:00:05]}  Kg4 {[%clk 0:00:02]} 51. Ra6 {[%clk 0:00:05]}  Bg5 {[%clk 0:00:03]} 52. Rg6 {[%clk 0:00:06]}  Kh3 {[%clk 0:00:04]} 53. Rxg5 {[%clk 0:00:05]}  Kxh2 {[%clk 0:00:05]} 54. c5 {[%clk 0:00:06]}  h3 {[%clk 0:00:06]} 55. c6 {[%clk 0:00:07]}  Kh1 {[%clk 0:00:07]} 56. c7 {[%clk 0:00:07]}  h2 {[%clk 0:00:07]} 57. Rf5 {[%clk 0:00:07]}  Kg1 {[%clk 0:00:08]} 58. c8=Q {[%clk 0:00:08]}  h1=Q {[%clk 0:00:08]} 59. Qg8+ {[%clk 0:00:08]}  Kh2 {[%clk 0:00:08]} 60. Rh5# {[%clk 0:00:09]} 1-0


[Site "https://www.chess.com"]